Workbook

Sheet Introduction
D3: Replant Net Return Estimator
D4: Version 1.0
B6: Aaron Smith
B7: Assistant Professor - Crop Marketing Specialist
B8: Office: (865) 974-7476 Email: aaron.smith@utk.edu
B10: Becky Bowling | H10: Ed Burns
B11: Extension Specialist I | H11: Extension Agent III, Franklin County
B32: Programs in agriculture and natural resources, 4-H youth development, family and consumer sciences, and resource development.
B33: University of Tennessee Institute of Agriculture, U.S. Department of Agriculture and country governments cooperating.
B34: UT Extension provide equal opportunities in programs and employment.

Sheet Replant Net Return Estimator
B1: Replant Net Return Estimator | J1: ****These will be hidden****
B2: Assumptions | F2: Estimated Yield, Revenue, Cost, and Net Return
C3: Corn | F3: Estimated Yield (No-Replant) | G3: =M24/M27*((1-C19)*M27) -> 105 | J3: Crop | L3: Destruction Method | O3: Planting Dates | Q3: Corn
B4: Harvest Price ($/Bu) | C4: 4.8 | F4: Estimated Yield (Replant) | G4: =IF(C3=J4,M24*(((100+0.0404*M21-0.0175*M21^2))/100),M24*(((143.78-1.273*M21)/100))) -> 145.00275 | J4: Corn | L4: Chemical | O4: 2014-03-20 | Q4: 2014-04-05
B5: Target Yield (Bu) | C5: 150 | F5: Change in Revenue | G5: =M9 -> 1920.132 | J5: Soybeans | L5: Tillage | O5: 2014-03-21 | Q5: 2014-05-10
B6: Seed Price ($/Thousand Seeds) | C6: 3.13 | F6: Replant Cost | G6: =M10 -> 1409.4 | L6: None | O6: 2014-03-22 | Q6: 2014-05-25
B7: Seeding Rate (Thousand Seeds/Acre) | C7: 28000 | F7: Estimated Net Returns from Replant | G7: =M9-M10 -> 510.732 | J7: Replant | O7: 2014-03-23
B8: Seed/Plant Mortality (%) | C8: 0.1 | F8: =IF(C3=J4,"Should I Replant Corn","Should I Replant Soybeans") -> Should I Replant Corn | G8: =IF(G7>0,J8,J9) -> YES | J8: YES | O8: 2014-03-24
B9: Burndown ($/Acre) | C9: 15.13 | J9: NO | L9: Revenue | M9: =C17*(G4-G3)*M28 -> 1920.132 | O9: 2014-03-25 | Q9: Soybeans
B10: Tillage ($/Acre) | C10: 17.72 | F10: Disclaimer: The information provided within represents estimates that are a result of a set of calculations that are described in more detail in the instructions. Changes in parameter values and corresponding costs are estimates and the user should use their own reasonable judgment to reflect whether the estimates are appropriate before acting on the results. The University of Tennessee will not be liable for any claim or damage brought against the user by any third party, nor will the University of Tennessee be liable for any consequential, indirect or special damages suffered by the user as a result of using the estimator. | L10: Cost | M10: =+M12+M13+M14+M15+M16 -> 1409.4 | O10: 2014-03-26 | Q10: 2014-05-15
B11: Planting ($/Acre) | C11: 12.88 | L11: Cost Breakdown | O11: 2014-03-27 | Q11: 2014-06-25
B12: Diesel ($/Gal) | C12: 3.9 | L12: Seed Cost | M12: =C17*((M25/1000)*M26) -> 876.4 | O12: 2014-03-28 | Q12: 2014-07-05
B13: Road Speed, Machinery (MPH) | C13: 25 | L13: Destruction Cost | M13: =IF(C22=L4,C9,IF(C22=L5,C10,0))*C17+IF(C22=L6,0,(C18*2/C13*M18*C12+C18*2/C13*C15)) -> 222.6 | O13: 2014-03-29
B14: Number of Additional Trips | C14: 3 | L14: Seeding Cost | M14: =+C11*C17+C18*2/C13*M18*C12+C18*2/C13*C15 -> 174.2 | O14: 2014-03-30
B15: Operator Labor Cost ($/hr) | C15: 11 | L15: Other Costs | M15: =+C24*C17 -> 0 | O15: 2014-03-31
B16: Replant Scenario | L16: Additional Trips | M16: =(C18*2/C13*M18*C12)*C14+(C18*2/C13*C15)*C14 -> 136.2 | O16: 2014-04-01
B17: Acres to be Replanted | C17: 10 | F17: Questions and comments should be directed to Dr. Aaron Smith, Assistant Professor, University of Tennessee. Phone: (865) 974-7476, Email: aaron.smith@utk.edu | O17: 2014-04-02
B18: Distance to Field (Miles One Way) | C18: 25 | L18: Fuel Use (Gal/Hr) | M18: 3 | O18: 2014-04-03
B19: Estimated Yield Loss - Replant Area (%) | C19: 0.3 | O19: 2014-04-04
B20: Original Planting Date | C20: 2014-04-05 | L20: End of Optimal Planting Period | M20: =C21 -> 2014-05-10 | O20: 2014-04-05
B21: End of Optimal Planting Period | C21: 2014-05-10 | L21: Days from Optimal | M21: =IF(C23-M20>0,C23-M20,0) -> 15 | O21: 2014-04-06
B22: Destruction Method | C22: Tillage | O22: 2014-04-07
B23: Replant Date | C23: 2014-05-25 | L23: Days between Plantings | M23: =C23-C20 -> 50 | O23: 2014-04-08
B24: Other Replant Costs ($/Acre) | C24: 0 | L24: Target Yield (Bu/Acre) | M24: =+C5 -> 150 | O24: 2014-04-09
L25: Seeding Rate (Seeds/Acre) | M25: =+C7 -> 28000 | O25: 2014-04-10
B26: Users may type over the default values in the orange boxes with any valid number that reflects their specific circumstance. | L26: Seed Cost ($/Thousand seeds) | M26: =+C6 -> 3.13 | O26: 2014-04-11
B27: Yellow boxes reveal drop down menus from which users can select from a range of options. | L27: Plants per Acre (Goal) | M27: =M25*(1-C8) -> 25200 | O27: 2014-04-12
L28: Harvest Price ($/Bu) | M28: =C4 -> 4.8 | O28: 2014-04-13
B29: ***Prior to making any replant decisions be sure to consult your crop insurance provider. *** | O29: 2014-04-14
O30: 2014-04-15
O31: 2014-04-16
J32: Corn | O32: 2014-04-17
J33: 4.8 | O33: 2014-04-18
J34: 150 | O34: 2014-04-19
J35: 3.13 | O35: 2014-04-20
J36: 28000 | O36: 2014-04-21
O37: 2014-04-22
J38: Soybeans | O38: 2014-04-23
J39: 11.6 | O39: 2014-04-24 | Q39: =VALUE(O39) -> 41753
J40: 45 | O40: 2014-04-25 | Q40: =VALUE(O40) -> 41754
J41: 0.36 | O41: 2014-04-26 | Q41: =VALUE(O41) -> 41755
J42: 150000 | O42: 2014-04-27 | Q42: 41756
O43: 2014-04-28 | Q43: 41757
O44: 2014-04-29 | Q44: 41758
O45: 2014-04-30 | Q45: 41759
O46: 2014-05-01 | Q46: 41760
O47: 2014-05-02 | Q47: 41761
O48: 2014-05-03 | Q48: 41762
O49: 2014-05-04 | Q49: 41763
O50: 2014-05-05 | Q50: 41764
O51: 2014-05-06 | Q51: 41765
O52: 2014-05-07 | Q52: 41766
O53: 2014-05-08 | Q53: 41767
O54: 2014-05-09 | Q54: 41768
O55: 2014-05-10 | Q55: 41769
O56: 2014-05-11 | Q56: 41770
O57: 2014-05-12 | Q57: 41771
O58: 2014-05-13 | Q58: 41772
O59: 2014-05-14 | Q59: 41773
O60: 2014-05-15 | Q60: 41774
O61: 2014-05-16 | Q61: 41775
O62: 2014-05-17 | Q62: 41776
O63: 2014-05-18 | Q63: 41777
O64: 2014-05-19 | Q64: 41778
O65: 2014-05-20 | Q65: 41779
O66: 2014-05-21 | Q66: 41780
O67: 2014-05-22 | Q67: 41781
O68: 2014-05-23 | Q68: 41782
O69: 2014-05-24 | Q69: 41783
O70: 2014-05-25 | Q70: 41784
O71: 2014-05-26 | Q71: 41785
O72: 2014-05-27 | Q72: 41786
O73: 2014-05-28 | Q73: 41787
O74: 2014-05-29 | Q74: 41788
O75: 2014-05-30 | Q75: 41789
O76: 2014-05-31 | Q76: 41790
O77: 2014-06-01 | Q77: 41791
O78: 2014-06-02 | Q78: 41792
O79: 2014-06-03 | Q79: 41793
O80: 2014-06-04 | Q80: 41794
O81: 2014-06-05 | Q81: 41795
O82: 2014-06-06 | Q82: 41796
O83: 2014-06-07 | Q83: 41797
O84: 2014-06-08 | Q84: 41798
O85: 2014-06-09 | Q85: 41799
O86: 2014-06-10 | Q86: 41800
O87: 2014-06-11 | Q87: 41801
O88: 2014-06-12 | Q88: 41802
O89: 2014-06-13 | Q89: 41803
O90: 2014-06-14 | Q90: 41804
O91: 2014-06-15 | Q91: 41805
O92: 2014-06-16 | Q92: 41806
O93: 2014-06-17 | Q93: 41807
O94: 2014-06-18 | Q94: 41808
O95: 2014-06-19 | Q95: 41809
O96: 2014-06-20 | Q96: 41810
O97: 2014-06-21 | Q97: 41811
O98: 2014-06-22 | Q98: 41812
O99: 2014-06-23 | Q99: 41813
O100: 2014-06-24 | Q100: 41814
O101: 2014-06-25 | Q101: 41815
O102: 2014-06-26 | Q102: 41816
O103: 2014-06-27 | Q103: 41817
O104: 2014-06-28 | Q104: 41818
O105: 2014-06-29 | Q105: =VALUE(O105) -> 41819
O106: 2014-06-30 | Q106: 41820
O107: 2014-07-01 | Q107: 41821
O108: 2014-07-02 | Q108: 41822
O109: 2014-07-03 | Q109: 41823
O110: 2014-07-04 | Q110: 41824
O111: 2014-07-05 | Q111: 41825
O112: 2014-07-06 | Q112: 41826
O113: 2014-07-07 | Q113: 41827
O114: 2014-07-08 | Q114: 41828
O115: 2014-07-09 | Q115: 41829
O116: 2014-07-10 | Q116: 41830
O117: 2014-07-11 | Q117: 41831
O118: 2014-07-12 | Q118: 41832
O119: 2014-07-13 | Q119: 41833
O120: 2014-07-14 | Q120: 41834
O121: 2014-07-15 | Q121: 41835

Sheet Formulas & Definitions
